fUST/lending_fUST_20241223
["ID","MTS","AMOUNT","RATE_DAILY","PERIOD"]
[346401501,1734941440509,-500.0,0.00013698,2]
[346401504,1734941440518,-500.0,0.00013698,2]
[346401505,1734941440527,-500.0,0.00013698,2]
[346401508,1734941440537,-1021.18,0.00013698,2]
[346401509,1734941440546,-500.0,0.00013698,2]
[346401511,1734941440555,-500.0,0.00013698,2]
[346401513,1734941440566,-500.0,0.00013698,2]
[346401515,1734941440575,-500.0,0.00013698,2]
[346401518,1734941440584,-925.24,0.00013698,2]
[346401520,1734941440594,-500.0,0.00013698,2]
[346401522,1734941440603,-500.0,0.00013698,2]
[346401524,1734941440612,-500.0,0.00013698,2]
[346401526,1734941440622,-500.0,0.00013698,2]
[346401527,1734941440631,-500.0,0.00013698,2]
[346401530,1734941440640,-500.0,0.00013698,2]
[346401532,1734941440650,-175.2,0.00013698,2]
[346401534,1734941440659,-500.0,0.00013698,2]
[346401536,1734941440668,-500.0,0.00013698,2]
[346401538,1734941440677,-500.0,0.00013698,2]
[346401540,1734941440687,-533.8,0.00013698,4]
[346401542,1734941440696,-500.0,0.00013698,2]
[346401544,1734941440705,-500.0,0.00013698,2]
[346401546,1734941440714,-500.0,0.00013698,2]
[346401548,1734941440725,-772.97,0.00013698,2]
[346401550,1734941440734,-500.0,0.00013698,2]
[346401552,1734941440743,-417.2982931,0.00013698,2]
[346401554,1734941440752,-500.0,0.00013698,2]
[346401556,1734941440762,-857.09,0.00013698,2]
[346401558,1734941440771,-521.74,0.00013698,2]
[346401560,1734941440779,-572.92294494,0.00013698,2]
[346401562,1734941440788,-500.0,0.00013698,2]
[346401564,1734941440797,-500.0,0.00013698,2]
[346401566,1734941440806,-664.68,0.00013698,2]
[346401568,1734941440817,-500.0,0.00013698,2]
[346401570,1734941440830,-500.0,0.00013698,2]
[346401572,1734941440839,-500.0,0.00013698,2]
[346401574,1734941440848,-500.0,0.00013698,2]
[346401576,1734941440857,-500.0,0.00013698,2]
[346401578,1734941440868,-500.0,0.00013698,2]
[346401580,1734941440878,-500.0,0.00013698,2]
[346401582,1734941440887,-502.6007362,0.00013698,2]
[346401584,1734941440896,-569.64932504,0.00013698,2]
[346401586,1734941440907,-500.0,0.00013698,2]
[346401588,1734941440916,-500.0,0.00013698,2]
[346401590,1734941440926,-505.91603207,0.00013698,2]
[346401592,1734941440935,-500.0,0.00013698,2]
[346401594,1734941440944,-611.42,0.00013698,2]
[346401596,1734941440954,-500.0,0.00013698,2]
[346401598,1734941440963,-1537.84,0.00013698,2]
[346401600,1734941440972,-508.97,0.00013698,2]
[346401602,1734941440982,-500.0,0.00013698,2]
[346401604,1734941440991,-500.0,0.00013698,2]
[346401606,1734941441001,-500.0,0.00013698,2]
[346401608,1734941441012,-500.0,0.00013698,2]
[346401610,1734941441021,-500.0,0.00013698,2]
[346401613,1734941441031,-500.0,0.00013698,2]
[346401615,1734941441041,-500.0,0.00013698,2]
[346401617,1734941441050,-500.0,0.00013698,2]
[346401619,1734941441059,-1447.83,0.00013698,2]
[346401620,1734941441070,-500.0,0.00013698,2]
[346401623,1734941441079,-1542.69,0.00013698,2]
[346401624,1734941441088,-500.0,0.00013698,2]
[346401626,1734941441097,-502.80737215,0.00013698,2]
[346401628,1734941441106,-500.0,0.00013698,2]
[346401630,1734941441115,-500.0,0.00013698,2]
[346401632,1734941441125,-500.0,0.00013698,2]
[346401634,1734941441133,-500.0,0.00013698,2]
[346401636,1734941441142,-500.0,0.00013698,2]
[346401638,1734941441151,-500.0,0.00013698,2]
[346401640,1734941441160,-500.0,0.00013698,2]
[346401642,1734941441169,-500.0,0.00013698,2]
[346401644,1734941441178,-500.0,0.00013698,2]
[346401646,1734941441187,-500.0,0.00013698,2]
[346401648,1734941441197,-500.0,0.00013698,2]
[346401650,1734941441206,-500.0,0.00013698,2]
[346401652,1734941441216,-500.0,0.00013698,2]
[346401654,1734941441225,-1707.23,0.00013698,2]
[346401656,1734941441234,-500.0,0.00013698,2]
[346401658,1734941441243,-500.0,0.00013698,2]
[346401660,1734941441252,-500.0,0.00013698,2]
[346401662,1734941441261,-500.0,0.00013698,2]
[346401664,1734941441271,-500.0,0.00013698,2]
[346401666,1734941441280,-500.0,0.00013698,2]
[346401668,1734941441290,-503.04,0.00013698,2]
[346401671,1734941441299,-291.22,0.00013698,2]
[346401673,1734941441309,-500.0,0.00013698,2]
[346401675,1734941441320,-500.0,0.00013698,2]
[346401676,1734941441330,-500.0,0.00013698,2]
[346401679,1734941441339,-500.0,0.00013698,2]
[346401681,1734941441348,-328.63285566,0.00013698,2]
[346401682,1734941441358,-500.0,0.00013698,2]
[346401685,1734941441367,-500.0,0.00013698,2]
[346401687,1734941441377,-500.0,0.00013698,2]
[346401689,1734941441386,-737.26,0.00013698,2]
[346401691,1734941441395,-500.0,0.00013698,2]
[346401693,1734941441404,-532.69,0.00013698,2]
[346401695,1734941441413,-526.10754086,0.00013698,2]
[346401697,1734941441422,-500.0,0.00013698,2]
[346401699,1734941441432,-603.77,0.00013698,2]
[346401701,1734941441441,-500.0,0.00013698,2]
[346401703,1734941441450,-500.0,0.00013698,2]
[346401705,1734941441459,-500.0,0.00013698,2]
[346401707,1734941441468,-500.0,0.00013698,2]
[346401709,1734941441478,-500.0,0.00013698,2]
[346401711,1734941441487,-500.0,0.00013698,2]
[346401713,1734941441496,-500.0,0.00013698,2]
[346401715,1734941441505,-500.0,0.00013698,2]
[346401717,1734941441515,-458.75739584,0.00013698,2]
[346401719,1734941441524,-500.0,0.00013698,2]
[346401721,1734941441533,-500.0,0.00013698,2]
[346401723,1734941441543,-500.0,0.00013698,2]
[346401725,1734941441552,-500.0,0.00013698,2]
[346401727,1734941441561,-500.0,0.00013698,2]
[346401729,1734941441571,-500.0,0.00013698,2]
[346401731,1734941441580,-15287.51004361,0.00013698,2]
[346401733,1734941441596,-20056.50434293,0.00013698,2]
[346402204,1734941445839,-8894.42000001,0.00013698,2]
[346403151,1734942632103,-661.77503875,0.0001287,2]
[346403152,1734942632112,-661.77503875,0.00013,2]
[346403153,1734942632122,-300.0,0.00013032,2]
[346403155,1734942632131,-506.38404063,0.00013033,2]
[346403156,1734942632148,-573.13547545,0.00013033,2]
[346403157,1734942632157,-176.69529548,0.00013033,2]
[346403158,1734942632166,-500.0,0.00013033,2]
[346403159,1734942632175,-500.0,0.00013033,2]
[346403160,1734942632185,-22809.74447844,0.00013034,2]
[346403203,1734942638059,-19444.9999998,0.00013034,2]
[346403215,1734942638169,-4675.78796123,0.00013034,2]
[346403222,1734942638226,-74391.8996968,0.00013034,2]
[346403224,1734942638235,-167.8708504,0.000131,2]
[346403226,1734942638245,-661.77503868,0.00013129,2]
[346403228,1734942638254,-661.77503868,0.00013257,2]
[346403230,1734942638263,-23479.17384591,0.000133,2]
[346403688,1734942643020,-446.91228402,0.000133,2]
[346403689,1734942643030,-493.214,0.000133,2]
[346403690,1734942643039,-661.77503868,0.00013386,2]
[346403691,1734942643048,-177.2686773,0.000134,2]
[346403692,1734942643075,-174.8284361,0.000134,2]
[346403693,1734942643083,-661.77503868,0.00013514,2]
[346403694,1734942643092,-661.77503868,0.00013643,2]
[346403695,1734942643101,-6258.26391598,0.00013691,2]
[346403712,1734942646038,-940.12628402,0.00013167,2]
[346403713,1734942646048,-4049.89561989,0.00013691,2]
[346403714,1734942646057,-501.9060209,0.00013698,2]
[346403715,1734942646067,-558.98150944,0.00013698,2]
[346403716,1734942646076,-502.99110824,0.00013698,2]
[346403717,1734942646084,-243.19393435,0.00013698,2]
[346403718,1734942646093,-502.52890815,0.00013698,2]
[346403719,1734942646103,-501.75659356,0.00013698,2]
[346403720,1734942646112,-500.0,0.00013698,2]
[346403721,1734942646121,-167.62,0.00013698,2]
[346403722,1734942646130,-426.53707144,0.00013698,2]
[346403723,1734942646304,-73.46292856,0.00013698,2]
[346403724,1734942646314,-500.0,0.00013698,2]
[346403725,1734942646324,-500.0,0.00013698,2]
[346403726,1734942646333,-500.0,0.00013698,2]
[346403727,1734942646343,-500.0,0.00013698,2]
[346403728,1734942646352,-500.0,0.00013698,2]
[346403729,1734942646361,-500.0,0.00013698,2]
[346403730,1734942646371,-625.54502216,0.00013698,2]
[346403731,1734942646385,-500.0,0.00013698,2]
[346403732,1734942646402,-451.69260104,0.00013698,2]
[346403733,1734942646414,-500.0,0.00013698,2]
[346403734,1734942646424,-511.56,0.00013698,4]
[346403735,1734942646434,-500.0,0.00013698,2]
[346403736,1734942646445,-511.73,0.00013698,2]
[346403737,1734942646455,-763.77,0.00013698,2]
[346403738,1734942646465,-500.0,0.00013698,2]
[346403739,1734942646476,-500.0,0.00013698,2]
[346403740,1734942646486,-374.36556844,0.00013698,2]
[346403741,1734942646498,-125.63443156,0.00013698,2]
[346403742,1734942646507,-500.0,0.00013698,2]
[346403743,1734942646516,-205.88,0.00013698,2]
[346403744,1734942646525,-721.24,0.00013698,2]
[346403745,1734942646535,-918.71,0.00013698,2]
[346403746,1734942646544,-500.0,0.00013698,2]
[346403747,1734942646554,-500.0,0.00013698,2]
[346403748,1734942646563,-500.0,0.00013698,2]
[346403749,1734942646572,-500.0,0.00013698,2]
[346403750,1734942646582,-500.0,0.00013698,2]
[346403751,1734942646591,-379.94992317,0.00013698,2]
[346403752,1734942646601,-500.0,0.00013698,2]
[346403753,1734942646610,-531.0,0.00013698,2]
[346403754,1734942646620,-500.0,0.00013698,2]
[346403755,1734942646629,-500.0,0.00013698,2]
[346403756,1734942646639,-500.0,0.00013698,2]
[346403757,1734942646648,-247.22564527,0.00013698,2]
[346403758,1734942646667,-936.39435473,0.00013698,2]
[346403759,1734942646676,-563.70545892,0.00013698,2]
[346403760,1734942646686,-500.0,0.00013698,2]
[346403761,1734942646696,-500.0,0.00013698,2]
[346403762,1734942646705,-1327.45,0.00013698,2]
[346403763,1734942646714,-500.0,0.00013698,2]
[346403764,1734942646724,-500.0,0.00013698,2]
[346403765,1734942646733,-500.0,0.00013698,2]
[346403766,1734942646742,-500.0,0.00013698,2]
[346403767,1734942646751,-500.0,0.00013698,2]
[346403768,1734942646760,-645.68,0.00013698,2]
[346403769,1734942646770,-500.0,0.00013698,2]
[346403770,1734942646780,-168.0,0.00013698,2]
[346403771,1734942646790,-500.0,0.00013698,2]
[346403772,1734942646799,-978.63,0.00013698,2]
[346403773,1734942646808,-500.0,0.00013698,2]
[346403774,1734942646818,-501.59,0.00013698,2]
[346403775,1734942646827,-534.41,0.00013698,2]
[346403776,1734942646837,-574.79365769,0.00013698,2]
[346403777,1734942646846,-298.4729975,0.00013698,2]
[346403778,1734942646856,-389.39318922,0.00013698,2]
[346403779,1734942646865,-504.35973396,0.00013698,2]
[346403780,1734942646874,-500.0,0.00013698,2]
[346403781,1734942646884,-886.69,0.00013698,2]
[346403782,1734942646893,-273.08358464,0.00013698,2]
[346403784,1734943202318,909.999999,0.00022,120]
[346403785,1734943228953,910.0,0.00022,120]
[346403786,1734943257189,910.0,0.00022,120]
[346403787,1734943292789,1009.0,0.00022,120]
[346403788,1734943311324,1009.0,0.00022,120]
[346403789,1734943344979,1008.20712584,0.00022,120]
[346403924,1734943838178,190.21994356,0.00022,120]
[346404024,1734943840183,-711.28081311,0.00012767,2]
[346404057,1734943843082,-3502.2408558,0.00012767,2]
[346404058,1734943843094,-1381.02895846,0.00012767,2]
[346404059,1734943843103,-472.659,0.000133,2]
[346404060,1734943843112,-2351.61510071,0.00013551,2]
[346404067,1734943846159,-624.7826615,0.00013551,2]
[346404069,1734944334526,-2543.9,0.000189,31]
[346404070,1734944334552,-2543.9,0.000189,31]
[346404071,1734944334577,-2543.9,0.000189,31]
[346404072,1734944334603,-2543.9,0.000189,31]
[346404073,1734944334628,-2543.9,0.000189,31]
[346404074,1734944334653,-2543.9,0.000189,31]
[346404075,1734944334678,-2543.9,0.000189,31]
[346404076,1734944334703,-2543.9,0.000189,31]
[346404077,1734944334729,-2543.9,0.000189,31]
[346404078,1734944334755,-2543.9,0.000189,31]
[346404079,1734944334783,-2543.9,0.000189,31]
[346404080,1734944334808,-2543.9,0.000189,31]
[346404081,1734944334833,-2543.9,0.000189,31]
[346404082,1734944334859,-2543.9,0.000189,31]
[346404083,1734944334883,-2543.9,0.000189,31]
[346404084,1734944334909,-2543.9,0.000189,31]
[346404085,1734944334959,-2543.9,0.000208,31]
[346404086,1734944334985,-2543.9,0.000208,31]
[346404087,1734944335010,-2543.9,0.000208,31]
[346404088,1734944335036,-2543.9,0.000208,31]
[346404089,1734944335062,-2543.9,0.000208,31]
[346404090,1734944335088,-2543.9,0.000208,31]
[346404091,1734944335114,-2543.9,0.000208,31]
[346404092,1734944335139,-2543.9,0.000208,31]
[346404093,1734944335168,-2543.9,0.000208,31]
[346404094,1734944335196,-2543.9,0.000208,31]
[346404095,1734944335222,-2543.9,0.000208,31]
[346404096,1734944335400,-2543.9,0.000208,31]
[346404097,1734944335428,-2543.9,0.000208,31]
[346404098,1734944335459,-2543.9,0.000208,31]
[346404099,1734944335486,-2543.9,0.000208,31]
[346404100,1734944335513,-2543.9,0.000208,31]
[346404101,1734944335540,-2543.9,0.000208,31]
[346404102,1734944335566,-2543.9,0.000208,31]
[346404103,1734944335592,-2543.9,0.000208,31]
[346404104,1734944335618,-2543.9,0.000208,31]
[346404105,1734944335644,-2543.9,0.000208,31]
[346404106,1734944335672,-2543.9,0.000208,31]
[346404107,1734944335699,-2543.9,0.000208,31]
[346404108,1734944335725,-2543.9,0.000208,31]
[346404109,1734944335750,-201.81764664,0.00020844,30]
[346404110,1734944335776,-390.67851479,0.000212,30]
[346404111,1734944335817,-3000.0,0.00021917,30]
[346404112,1734944335840,-3000.0,0.00021917,30]
[346404113,1734944335869,-3000.0,0.00021917,30]
[346404114,1734944335894,-3000.0,0.00021917,30]
[346404115,1734944335917,-3000.0,0.00021917,30]
[346404116,1734944335942,-3000.0,0.00021917,30]
[346404117,1734944335966,-3000.0,0.00021917,30]
[346404118,1734944335990,-3000.0,0.00021917,30]
[346404119,1734944336015,-3000.0,0.00021917,30]
[346404120,1734944336039,-3000.0,0.00021917,30]
[346404121,1734944336063,-3000.0,0.00021917,30]
[346404122,1734944336087,-3000.0,0.00021917,30]
[346404123,1734944336112,-3000.0,0.00021917,30]
[346404124,1734944336136,-3000.0,0.00021917,30]
[346404125,1734944336160,-3000.0,0.00021917,30]
[346404126,1734944336184,-3000.0,0.00021917,30]
[346404127,1734944336209,-3000.0,0.00021917,30]
[346404128,1734944336233,-3000.0,0.00021917,30]
[346404129,1734944336257,-3000.0,0.00021917,30]
[346404130,1734944336281,-3000.0,0.00021917,30]
[346404131,1734944336305,-1130.46659973,0.00021917,30]
[346404132,1734944336334,-200.0,0.00022347,120]
[346404133,1734944336360,-1417.24,0.000225,120]
[346404134,1734944336387,-2543.9,0.000228,31]
[346404135,1734944336413,-2543.9,0.000228,31]
[346404136,1734944336439,-2543.9,0.000228,31]
[346404137,1734944336466,-2543.9,0.000228,31]
[346404138,1734944336493,-2543.9,0.000228,31]
[346404139,1734944336519,-2543.9,0.000228,31]
[346404140,1734944336544,-2543.9,0.000228,31]
[346404141,1734944336570,-2543.9,0.000228,31]
[346404142,1734944336596,-2543.9,0.000228,31]
[346404143,1734944336623,-2543.9,0.000228,31]
[346404144,1734944336649,-2543.9,0.000228,31]
[346404145,1734944336675,-2543.9,0.000228,31]
[346404146,1734944336701,-2543.9,0.000228,31]
[346404147,1734944336729,-2543.9,0.000228,31]
[346404148,1734944336755,-2543.9,0.000228,31]
[346404149,1734944336781,-2543.9,0.000228,31]
[346404150,1734944336807,-2543.9,0.000228,31]
[346404151,1734944336833,-2543.9,0.000228,31]
[346404152,1734944336861,-2543.9,0.000228,31]
[346404153,1734944336887,-2543.9,0.000228,31]
[346404154,1734944336914,-2543.9,0.000228,31]
[346404155,1734944336941,-2543.9,0.000228,31]
[346404156,1734944336968,-2543.9,0.000228,31]
[346404157,1734944336995,-2543.9,0.000228,31]
[346404158,1734944337021,-196.12774544,0.00023,30]
[346404159,1734944337047,-500.0,0.00023,30]
[346404160,1734944337071,-883.55025776,0.00023,30]
[346404161,1734944337096,-1600.0,0.00023,30]
[346404162,1734944337121,-1600.0,0.00023,30]
[346404163,1734944337145,-1600.0,0.00023,30]
[346404164,1734944337170,-1600.0,0.00023,30]
[346404165,1734944337196,-1600.0,0.00023,30]
[346404166,1734944337223,-1600.0,0.00023,30]
[346404167,1734944337249,-1600.0,0.00023,30]
[346404168,1734944337274,-1600.0,0.00023,30]
[346404169,1734944337299,-862.89405611,0.00023,30]
[346404170,1734944337326,-1600.0,0.00023,30]
[346404171,1734944337351,-1600.0,0.00023,30]
[346404172,1734944337376,-1600.0,0.00023,30]
[346404173,1734944337401,-1600.0,0.00023,30]
[346404174,1734944337427,-1600.0,0.00023,30]
[346404175,1734944337452,-2685.21531568,0.00023,30]
[346404176,1734944337477,-500.0,0.00023,30]
[346404177,1734944337502,-503.62000496,0.00023,30]
[346404178,1734944337527,-900.0,0.00023,30]
[346404179,1734944337551,-500.0,0.00023,30]
[346404180,1734944337576,-900.0,0.00023,30]
[346404181,1734944337601,-900.0,0.00023,30]
[346404182,1734944337626,-900.0,0.00023,30]
[346404183,1734944337650,-900.0,0.00023,30]
[346404184,1734944337676,-900.0,0.00023,30]
[346404185,1734944337701,-900.0,0.00023,30]
[346404186,1734944337726,-900.0,0.00023,30]
[346404187,1734944337751,-3700.0,0.00023,30]
[346404188,1734944337778,-3700.0,0.00023,30]
[346404189,1734944337928,-3700.0,0.00023,30]
[346404190,1734944337955,-900.0,0.00023,30]
[346404191,1734944337980,-1100.0,0.00023,30]
[346404192,1734944338005,-3700.0,0.00023,30]
[346404193,1734944338029,-900.0,0.00023,30]
[346404194,1734944338054,-1100.0,0.00023,30]
[346404195,1734944338079,-3700.0,0.00023,30]
[346404196,1734944338105,-900.0,0.00023,30]
[346404197,1734944338129,-1100.0,0.00023,30]
[346404198,1734944338153,-3700.0,0.00023,30]
[346404199,1734944338178,-900.0,0.00023,30]
[346404200,1734944338203,-1100.0,0.00023,30]
[346404201,1734944338229,-1312.69170271,0.00023,30]
[346404202,1734944338254,-3700.0,0.00023,30]
[346404203,1734944338278,-1100.0,0.00023,30]
[346404204,1734944338303,-1100.0,0.00023,30]
[346404205,1734944338329,-1100.0,0.00023,30]
[346404206,1734944338356,-3700.0,0.00023,30]
[346404207,1734944338381,-1100.0,0.00023,30]
[346404208,1734944338407,-3700.0,0.00023,30]
[346404209,1734944338433,-3700.0,0.00023,30]
[346404210,1734944338458,-3700.0,0.00023,30]
[346404211,1734944338483,-1100.0,0.00023,30]
[346404212,1734944338507,-3700.0,0.00023,30]
[346404213,1734944338533,-1100.0,0.00023,30]
[346404214,1734944338558,-1100.0,0.00023,30]
[346404215,1734944338583,-4500.0,0.00023,30]
[346404216,1734944338609,-1100.0,0.00023,30]
[346404217,1734944338635,-4500.0,0.00023,30]
[346404218,1734944338661,-3700.0,0.00023,30]
[346404219,1734944338687,-1100.0,0.00023,30]
[346404220,1734944338714,-4500.0,0.00023,30]
[346404221,1734944338739,-5010.54397151,0.00023,30]
[346404222,1734944338764,-1631.08712533,0.00023,30]
[346404223,1734944338789,-4500.0,0.00023,30]
[346404224,1734944338813,-4500.0,0.00023,30]
[346404225,1734944338837,-4500.0,0.00023,30]
[346404226,1734944338866,-4500.0,0.00023,30]
[346404227,1734944338891,-4500.0,0.00023,30]
[346404228,1734944338920,-4500.0,0.00023,30]
[346404229,1734944338947,-4500.0,0.00023,30]
[346404230,1734944338972,-4500.0,0.00023,30]
[346404231,1734944338997,-4500.0,0.00023,30]
[346404232,1734944339025,-4500.0,0.00023,30]
[346404233,1734944339051,-7010.56571979,0.00023,30]
[346404234,1734944339078,-350.0,0.00024,120]
[346404235,1734944339102,-1630.04477401,0.00024,120]
[346404236,1734944339127,-164.638224,0.0002411,41]
[346404237,1734944339152,-164.638224,0.0002411,80]
[346404238,1734944339177,-164.638224,0.0002411,119]
[346404239,1734944339204,-2543.9,0.000247,31]
[346404240,1734944339230,-2543.9,0.000247,31]
[346404241,1734944339256,-2543.9,0.000247,31]
[346404242,1734944339281,-2543.9,0.000247,31]
[346404243,1734944339306,-2543.9,0.000247,31]
[346404244,1734944339332,-2543.9,0.000247,31]
[346404245,1734944339358,-2543.9,0.000247,31]
[346404246,1734944339383,-2543.9,0.000247,31]
[346404247,1734944339408,-2543.9,0.000247,31]
[346404248,1734944339433,-2543.9,0.000247,31]
[346404249,1734944339458,-2543.9,0.000247,31]
[346404250,1734944339484,-2543.9,0.000247,31]
[346404251,1734944339509,-2543.9,0.000247,31]
[346404252,1734944339534,-2543.9,0.000247,31]
[346404253,1734944339559,-2543.9,0.000247,31]
[346404254,1734944339589,-2543.9,0.000247,31]
[346404255,1734944339624,-2543.9,0.000247,31]
[346404256,1734944339654,-2543.9,0.000247,31]
[346404257,1734944339687,-2543.9,0.000247,31]
[346404258,1734944339721,-2543.9,0.000247,31]
[346404259,1734944339752,-2543.9,0.000247,31]
[346404260,1734944339785,-2543.9,0.000247,31]
[346404261,1734944339821,-2543.9,0.000247,31]
[346404262,1734944339856,-2543.9,0.000247,31]
[346404263,1734944339889,-29831.88102353,0.000249,30]
[346404264,1734944339926,-1625.98,0.00025,30]
[346404265,1734944339959,-50000.0,0.00025,30]
[346404266,1734944339995,-500.0,0.00025,120]
[346404267,1734944340027,-4000.0,0.00025,30]
[346404268,1734944340062,-4367.65716508,0.00025,120]
[346404269,1734944340096,-2401.13929035,0.00025,120]
[346404270,1734944340133,-2551.40205188,0.00025,120]
[346404271,1734944340168,-1600.0,0.00025,30]
[346404272,1734944340198,-500.0,0.00025,30]
[346404273,1734944340228,-1600.0,0.00025,30]
[346404274,1734944340260,-500.0,0.00025,30]
[346404275,1734944340295,-1600.0,0.00025,30]
[346404276,1734944340326,-1600.0,0.00025,30]
[346404277,1734944340357,-1600.0,0.00025,30]
[346404278,1734944340389,-1600.0,0.00025,30]
[346404279,1734944340418,-1600.0,0.00025,30]
[346404280,1734944340446,-1600.0,0.00025,30]
[346404281,1734944340475,-1600.0,0.00025,30]
[346404282,1734944340505,-1600.0,0.00025,30]
[346404283,1734944340534,-318.56475017,0.00025,30]
[346404284,1734944340564,-1600.0,0.00025,30]
[346404285,1734944340593,-1600.0,0.00025,30]
[346404286,1734944340621,-1600.0,0.00025,30]
[346404287,1734944340650,-1600.0,0.00025,30]
[346404288,1734944340678,-190.0,0.00025,30]
[346404289,1734944340706,-500.0,0.00025,30]
[346404290,1734944340735,-500.0,0.00025,30]
[346404291,1734944340764,-900.0,0.00025,30]
[346404292,1734944340793,-900.0,0.00025,30]
[346404293,1734944340823,-499.3,0.00025,30]
[346404294,1734944340854,-900.0,0.00025,30]
[346404295,1734944340882,-900.0,0.00025,30]
[346404296,1734944340912,-900.0,0.00025,30]
[346404297,1734944340942,-900.0,0.00025,30]
[346404298,1734944340970,-900.0,0.00025,30]
[346404299,1734944340999,-3700.0,0.00025,30]
[346404300,1734944341030,-1100.0,0.00025,30]
[346404301,1734944341059,-900.0,0.00025,30]
[346404302,1734944341087,-3700.0,0.00025,30]
[346404303,1734944341116,-1100.0,0.00025,30]
[346404304,1734944341146,-900.0,0.00025,30]
[346404305,1734944341175,-3700.0,0.00025,30]
[346404306,1734944341205,-900.0,0.00025,30]
[346404307,1734944341235,-1100.0,0.00025,30]
[346404308,1734944341264,-3700.0,0.00025,30]
[346404309,1734944341293,-500.0,0.00025,30]
[346404310,1734944341324,-1100.0,0.00025,30]
[346404311,1734944341354,-900.0,0.00025,30]
[346404312,1734944341383,-3700.0,0.00025,30]
[346404313,1734944341412,-502.59624864,0.00025,30]
[346404314,1734944341442,-500.0,0.00025,30]
[346404315,1734944341471,-3700.0,0.00025,30]
[346404316,1734944341717,-900.0,0.00025,30]
[346404317,1734944341746,-1100.0,0.00025,30]
[346404318,1734944341771,-900.0,0.00025,30]
[346404319,1734944341796,-3700.0,0.00025,30]
[346404320,1734944341821,-1100.0,0.00025,30]
[346404321,1734944341846,-900.0,0.00025,30]
[346404322,1734944341878,-3700.0,0.00025,30]
[346404323,1734944341907,-500.0,0.00025,30]
[346404324,1734944341932,-1100.0,0.00025,30]
[346404325,1734944341958,-3700.0,0.00025,30]
[346404326,1734944341984,-1100.0,0.00025,30]
[346404327,1734944342009,-3700.0,0.00025,30]
[346404328,1734944342037,-1100.0,0.00025,30]
[346404329,1734944342062,-3700.0,0.00025,30]
[346404330,1734944342089,-3700.0,0.00025,30]
[346404331,1734944342113,-3700.0,0.00025,30]
[346404332,1734944342139,-1100.0,0.00025,30]
[346404333,1734944342165,-4500.0,0.00025,30]
[346404334,1734944342189,-163.92618967,0.00025,30]
[346404335,1734944342216,-3700.0,0.00025,30]
[346404336,1734944342243,-1100.0,0.00025,30]
[346404337,1734944342268,-4500.0,0.00025,30]
[346404338,1734944342294,-3700.0,0.00025,30]
[346404339,1734944342322,-1100.0,0.00025,30]
[346404340,1734944342350,-4500.0,0.00025,30]
[346404341,1734944342376,-1100.0,0.00025,30]
[346404342,1734944342406,-4500.0,0.00025,30]
[346404343,1734944342431,-1100.0,0.00025,30]